Cogmind - Beta 13 *** ADVENTURER MODE // 2024.04.03 @ 02:45:18 Player: Bytemaster Result: Destroyed by as-16291 with Assembled Blade Performance ------------- Evolutions (0) 0 Regions Visited (2) 400 Robots Destroyed (0) 0 Value Destroyed (0) 0 Prototype IDs (1) 20 Alien Tech Used (0) 0 Bonus (-54) -54 TOTAL SCORE: 366 Bonus ------- Friendly Fire -54 Cogmind --------- Core Integrity 0/250 Matter 183/300 Energy 64/100 System Corruption 0% Temperature Cool (0) Movement Core (100) Ox1 Location -10/Mines Parts ------- > --- POWER (1) -------- (None) > --- PROPULSION (2) --- (None) > --- UTILITY (2) ------ Small Storage Unit > --- WEAPON (2) ------- (None) > --- INVENTORY (8) ---- Light Treads High-capacity Battery (250) Seismic Detector Propulsion Shielding Medium Laser Peak State ------------ > --- POWER ------------ Light Ion Engine > --- PROPULSION ------- Wheel Wheel > --- UTILITY ---------- Small Storage Unit Experimental Sensor Array > --- WEAPON ----------- Small Laser Light Assault Rifle > --- INVENTORY -------- Light Treads Light Treads High-capacity Battery Propulsion Shielding EM Pulse Gun Medium Laser Mining Laser [Rating: 15] Favorites ----------- Power Light Ion Engine Engine Light Ion Engine Propulsion Wheel Treads Light Treads Wheel Wheel Utility Small Storage Unit Device Seismic Detector Storage Small Storage Unit Weapon Small Laser Energy Gun Small Laser Ballistic Gun Light Assault Rifle Special Weapon Mining Laser Build | -11 -10 -10 ------- Run | Yrd Mat Min Slots Evolved . | . . . Power . | . . . Propulsion . | . . . Utility . | . . . Weapon . | . . . Parts Attached 21 | 8 8 5 Power 3 | 1 2 . Engine 3 | 1 2 . Core . | . . . Reactor . | . . . Propulsion 8 | 4 2 2 Treads 4 | 2 . 2 Leg . | . . . Wheel 4 | 2 2 . Hover . | . . . Flight . | . . . Utility 3 | 1 1 1 Device 2 | . 1 1 Storage 1 | 1 . . Processor . | . . . Hackware . | . . . Protection . | . . . Artifact . | . . . Weapon 7 | 2 3 2 Energy Gun 5 | 2 2 1 Energy Cannon . | . . . Ballistic Gun 1 | . 1 . Ballistic Cannon . | . . . Launcher . | . . . Special Weapon 1 | . . 1 Impact Weapon . | . . . Slashing Weapon . | . . . Piercing Weapon . | . . . Special Melee Weapon . | . . . Unidentified Prototypes 1 | . . 1 Parts Lost 9 | . . 9 Power 1 | . . 1 Propulsion 3 | . . 3 Utility 1 | . . 1 Weapon 4 | . . 4 Highest Loss Streak 9 | . . 9 To Critical Strikes . | . . . Average Slot Usage (%) 93 | . 90 95 Engine 13 | . 14 12 Wheel 26 | . 27 25 Device 11 | . 9 13 Storage 14 | . 14 14 Energy Gun 15 | . 18 14 Ballistic Gun 9 | . 5 13 Naked Turns . | . . . Heaviest Build 14 | 12 14 11 Greatest Support 40 | 40 20 20 Greatest Overweight (x) 2 | . 2 . Average Overweight (x) . | . . . Largest Inventory Capacity 8 | 8 8 8 Average Capacity 7 | 7 8 8 Most Carried 8 | 6 8 8 Average Carried 6 | 4 6 7 Final Capacity 8 | 8 8 8 Final Carried 8 | 6 8 5 Class Distribution -------------------- 100% | Mutant Dominant Class ---------------- Mutant | -10/Materials Mutant | -10/Mines Resources | -11 -10 -10 ----------- Run | Yrd Mat Min Matter Collected 251 | 251 . . Remotely . | . . . Salvage Created . | . . . Parts . | . . . Haulers Intercepted . | . . . Recyclers Shooed . | . . . Parts Field Recycled . | . . . Retrieved Matter . | . . . Parts Self-Destructed . | . . . Prevented . | . . . Kills | -11 -10 -10 ------- Run | Yrd Mat Min Combat Hostiles Destroyed . | . . . Classes Destroyed . | . . . Best Kill Streak . | . . . Combat Bots Only . | . . . Max Kills in Single Turn . | . . . Gunslinging . | . . . Exploded . | . . . Melee . | . . . Uniques/NPCs Destroyed . | . . . Combat | -11 -10 -10 -------- Run | Yrd Mat Min Hostile Shots Fired 88 | . . 88 Missed 26 | . . 26 Damage Taken 809 | . . 809 Core 257 | . . 257 Absorbed by Shields . | . . . Ignored by Resistances 232 | . . 232 Core Remaining (%) 100 | 100 . . Volleys Fired 6 | . 2 4 Largest 2 | . 2 2 Hottest 60 | . 60 60 Shots Fired 9 | . 4 5 Gun 9 | . 4 5 Cannon . | . . . Launcher . | . . . Special . | . . . Kinetic 3 | . 2 1 Thermal 5 | . 2 3 Explosive . | . . . Electromagnetic 1 | . . 1 Robot Hit Streak 3 | . . 3 Robot Miss Streak 2 | . . 2 Penetration Max . | . . . Secondary Targets . | . . . Shots Hit Robots 3 | . . 3 Core Hits 1 | . . 1 Critical Kills . | . . . Critical Parts Destroyed . | . . . Critical Strikes . | . . . Melee Attacks . | . . . Impact . | . . . Slashing . | . . . Piercing . | . . . Sneak Attacks . | . . . Combat Hostiles . | . . . Follow-up Attacks . | . . . Damage Inflicted 53 | . . 53 Guns 53 | . . 53 Cannons . | . . . Explosions . | . . . Melee . | . . . Ramming . | . . . Kinetic 8 | . . 8 Thermal 34 | . . 34 Explosive . | . . . Electromagnetic 11 | . . 11 Impact . | . . . Slashing . | . . . Piercing . | . . . Highest Corruption . | . . . Average Corruption . | . . . Corruption Purged . | . . . Corruption Blocked . | . . . Overload Shots . | . . . Overflow Damage . | . . . Projectiles . | . . . Explosions . | . . . Melee . | . . . Knockbacks . | . . . Impact . | . . . Kinetic . | . . . Secondary . | . . . Self-Inflicted Damage . | . . . Shots . | . . . Rammed . | . . . Targets Rammed . | . . . Kicked . | . . . Crushed . | . . . Highest Temperature 40 | . 40 20 Average Temperature 18 | . 24 13 Received Heat Transfer 100 | . . 100 Siege Activations . | . . . Robots Corrupted . | . . . Combat Hostiles . | . . . Parts Fried . | . . . Impact Corruptions . | . . . Robots Melted . | . . . Combat Hostiles . | . . . Parts Melted . | . . . Heat Transferred 75 | . . 75 Parts Sabotaged . | . . . Parts Stolen . | . . . Parts Stripped . | . . . Power Chain Reactions . | . . . Alert | -11 -10 -10 ------- Run | Yrd Mat Min Peak Influence 12 | . 12 3 Initial 3 | . . 3 Average 1 | . 1 2 Maximum Alert Level . | . . . Low Security (%) 100 | 100 100 100 Level 1 . | . . . Level 2 . | . . . Level 3 . | . . . Level 4 . | . . . Level 5 . | . . . High Security . | . . . Max Security . | . . . Squads Dispatched 1 | . 1 . Investigation 1 | . 1 . Extermination . | . . . Reinforcement . | . . . Assault . | . . . Garrison . | . . . Intercept . | . . . Searches Triggered . | . . . Construction Impeded . | . . . Haulers Reinforced . | . . . Active Scanning Responses . | . . . Cargo Convoy Interrupts . | . . . Stealth | -11 -10 -10 --------- Run | Yrd Mat Min Distress Signals 1 | . 1 . Communications Jammed . | . . . Distress Signals . | . . . Times Spotted 21 | . 2 19 Peak Tracking Total 17 | . 5 17 Tactical Retreats 1 | . . 1 Traps | -11 -10 -10 ------- Run | Yrd Mat Min Traps Triggered 4 | . 4 . Indirectly . | . . . Trap Hack Attempts . | . . . Triggered . | . . . Disarmed . | . . . Reprogrammed . | . . . Reused . | . . . Traps Extracted . | . . . Installed . | . . . Triggered . | . . . Machines | -11 -10 -10 ---------- Run | Yrd Mat Min Machines Disabled . | . . . Max in Single Turn . | . . . Machines Repaired . | . . . Machines Dismantled . | . . . Machines Sabotaged . | . . . Overloaded Fab Kills . | . . . Hacking | -11 -10 -10 --------- Run | Yrd Mat Min Machines Accessed 4 | . 4 . Terminals 3 | . 3 . Fabricators . | . . . Repair Stations . | . . . Recycling Units 1 | . 1 . Scanalyzers . | . . . Garrison Access . | . . . Total Hacks 12 | . 12 . Successful 5 | . 5 . Failed 7 | . 7 . Catastrophic . | . . . Database Lockouts . | . . . Manual . | . . . Terminals 9 | . 9 . Fabricators . | . . . Repair Stations . | . . . Recycling Units 3 | . 3 . Scanalyzers . | . . . Garrison Access . | . . . Terminal Hacks 4 | . 4 . Record 2 | . 2 . Branch Access Points 1 | . 1 . Registered Components 1 | . 1 . Fabricator Hacks . | . . . Repair Station Hacks . | . . . Recycling Unit Hacks 1 | . 1 . Report Inventory 1 | . 1 . Scanalyzer . | . . . Garrison Access Hacks . | . . . Unauthorized Hacks . | . . . Terminals . | . . . Fabricators . | . . . Repair Stations . | . . . Recycling Units . | . . . Scanalyzers . | . . . Garrison Access . | . . . Data Cores Recovered . | . . . Used . | . . . Hacking Detections 3 | . 3 . Full Trace Events . | . . . Feedback Events . | . . . Feedback Blocked . | . . . Robot Schematics Acquired . | . . . Robots Built . | . . . Authchips . | . . . Time . | . . . Total Robot Build Rating . | . . . Part Schematics Acquired . | . . . Parts Built . | . . . Authchips . | . . . Time . | . . . Total Part Build Rating . | . . . Parts Repaired . | . . . Time . | . . . Parts Recycled . | . . . Recycled Matter . | . . . Retrieved Matter . | . . . Retrieved Components . | . . . Parts Scanalyzed . | . . . Part Schematics Acquired . | . . . Parts Damaged . | . . . Bothacking | -11 -10 -10 ------------ Run | Yrd Mat Min Used RIF Installer . | . . . Robots Hacked . | . . . Non-combat . | . . . Combat . | . . . Robot Hacks Applied . | . . . Relay Couplers Released . | . . . Fabnet Peak Effective % . | . . . Robots Rewired . | . . . Allies Hacked . | . . . Hacks Repelled . | . . . Allies | -11 -10 -10 -------- Run | Yrd Mat Min Total Allies . | . . . Largest Group . | . . . Highest-Rated Group . | . . . Highest-Rated Ally . | . . . Total Orders . | . . . Ally Attacks . | . . . Total Damage . | . . . Kills . | . . . Allies Corrupted . | . . . Allies Melted . | . . . Intel | -11 -10 -10 ------- Run | Yrd Mat Min Robot Analysis Total . | . . . Derelict Logs Recovered . | . . . Drone Launches . | . . . Drone Recoveries . | . . . Exploration | -11 -10 -10 ------------- Run | Yrd Mat Min Turns Passed 607 | 219 179 209 Spaces Moved 642 | 222 189 231 Core 11 | 10 1 . Treads 38 | 30 . 8 Legs . | . . . Wheels 593 | 182 188 223 Hover . | . . . Flight . | . . . Fastest Speed 50 | 50 80 80 Average Speed 84 | 89 80 82 Slowest Speed 160 | 160 150 160 Overloaded Moves . | . . . Propulsion Burnouts . | . . . Robots Hopped . | . . . Cave-ins Triggered . | . . . Exploration Rate (%) 27 | 11 28 42 Regions Visited 2 Branch Regions 1 Pre-discovered Areas . | . . . Known Exits Taken 1 | . 1 . Unknown Exits Taken 1 | 1 . . Scrap Searched . | . . . Spaces Dug . | . . . Terrain Destroyed . | . . . Melee . | . . . Projectile . | . . . AOE . | . . . Terrain Rammed . | . . . Walls Destroyed . | . . . Machines Disabled . | . . . Actions | -11 -10 -10 --------- Run | Yrd Mat Min Total 696 | 240 212 244 Wait . | . . . Move 640 | 221 188 231 Hop . | . . . Pick Up 24 | 11 11 2 Fast Attach 2 | 1 1 . Attach 15 | 5 6 4 Detach . | . . . Swap 4 | 2 1 1 Drop 5 | . 3 2 Fire 6 | . 2 4 Melee . | . . . Ram . | . . . Kick . | . . . Crush . | . . . Escape Stasis . | . . . Rewire . | . . . Trap . | . . . Miscellaneous . | . . . Route ------- -11/Scrapyard -10/Materials (discovered 2 exits: *Min x2) -10/Mines History --------- Turn | Location | Event 9 | -11/Scrapyard | Discovered new exit (range 16) 220 | -11/Scrapyard | Entered Materials 308 | -10/Materials | Build established: Mutant 369 | -10/Materials | Discovered new exit (range 16) 378 | -10/Materials | Identified exit to Mines 399 | -10/Materials | Entered Mines 555 | -10/Mines | Found a damaged Exp. Sensor Array with a note attached 557 | -10/Mines | Found Prototype Device 558 | -10/Mines | Identified Exp. Sensor Array 576 | -10/Mines | Assembled infested the area 582 | -10/Mines | Assisted by a Guerilla fighting off Assembled 600 | -10/Mines | Core integrity fell below 50% 607 | -10/Mines | Core integrity fell below 20% 608 | -10/Mines | Destroyed by as-16291 with Assembled Blade Last Messages --------------- The unstable cave ceiling collapses. Different forms of propulsion may not be used simultaneously, Wheel automatically deactivated. YI-UF0 suffers critical hit (Destroy). Lgt. Ion Engine destroyed. V1-GRD(h) destroyed. Wheel destroyed. The unstable cave ceiling collapses. as-88284 suffers critical hit (Destroy). The unstable cave ceiling collapses. Exp. Sensor Array destroyed. as-70460 destroyed. as-88284 destroyed. Lgt. Assault Rifle destroyed. Lgt. Treads destroyed. Sml. Laser destroyed. YI-UF0: "WHOMP!" EM Pulse Gun destroyed. Mining Laser destroyed. Map ----- +----------------------------------------------------+ | ???????????????????????????????? | | ???????????????????????????????? | | ???????????????????????????????? | | ???????????????????????????????? | | ???????????????????????????????? | | ???????????????????????????????? | | ???????????????????????????????? | | ???????????????????????????????? | | ???????????????????????????????? | | ???????????????????????????????? | | ???????????????????????????????? | | ???????????????????????????????? | | ???????????????????????????????? | | ???????????????????????????????? | | ????????????##?????????????????? | | ???????????# ?????????????????? | | ???????????# ?????????????????? | | ???????????# #?????????????????? | | ???????????# #?????????????????? | | ?###???##### #??????????##?????? | | ?# #??#ggg# #????????? ##????? | | ?# #?# # #?????###% " ???? | | ?# ## # #??### #= % ???? | | ??# # a### ??? | | ??# a aa a %g ??? | | ??# @aa a% #??????? | | ??# a a# # #???????? | | ??## ## # #???????? | | ???## ## %# " ##???????? | | ????## ## % ####????????? | | ?????###### # ##???????????? | | ??????????# #????????????? | | ????####### # ##????????????? | | ????# # #?????????????? | | ????# ######## %*#?????????????? | | ????# #???????#!##?????????????? | | ????# #???????? ##?????????????? | | ????# ###?????? ?????????????? | | ????# #??????## ?????????????? | | ????# #???????? ?????????????? | | ????# #???????# ?????????????? | | ???## ##??????# #????????????? | | ???# ##?????# #????????????? | | ???# [###???# #????????????? | | ???# ##??# #????????????? | | ???# #??# #????????????? | | ???# #??# ##???????????? | | ???# #### ######???###? | | ???## ## #??## ## | | ????# #??# # | +----------------------------------------------------+ Best States ------------- Heat Dissipation 25 Energy Generation 10 Energy Capacity 250 Matter Stores 291 Matter Capacity 300 Sight Range 16 Robot Scan Range 20 Terrain Scan Density 10 Resistance: KI 20 Resistance: TH 20 Resistance: EX 20 Resistance: EM 20 Resistance: I 20 Resistance: S 20 Resistance: P 20 Evasion (%) 50 Recoil Reduction 2 Offensive Hacking 10 Item Schematics ----------------- None Robot Schematics ------------------ None Fabricated ------------ Nothing Alien Tech Used ----------------- None Achievements -------------- None Challenges ------------ None Game ------ Seed TargetingPoweredTearclaws Manual? 0 Play Time 00:17:09 Cumulative 3.9 hours Start 2024.04.03 @ 02:25:42 End 2024.04.03 @ 02:45:18 Sessions 1 Manual Loads 0 Difficulty Adventurer Special Mode None Game No. 4 Rogue 0 Adventurer 4 Explorer 0 Win Type - Total 0 Types 0/0/0/0/0/0/0/0/0 Lore% 3 Gallery% 8 Achievement% 7 Wizard Run 0 Options --------- Layout 1 ASCII 0 Keyboard 0 Movement Arrows Keybinds 0 Fullscreen 1 Font 16/SmallcapsGlow Map View 50x40 Zoom Use 0% Tactical HUD 0 Map Filters NONE Filters NONE Steam SD RUN: 97267507-b142-421c-a32f-cc64aaab7c6b